[Event "Early-Titled-Tuesday-Blitz-March-19-2024"]
[Site "Chess.com"]
[Date "2024.03.19"]
[Round "10"]
[White "chessjazda"]
[Black "kikoveiga"]
[Result "0-1"]
[WhiteElo "2277"]
[BlackElo "2544"]
[TimeControl "180+1"]
[EndTime "9:56:01 PDT"]
[Termination "kikoveiga won by resignation"]

1. d4 {[%clk 0:02:57.7]} 1... Nf6 {[%clk 0:02:46.7]} 2. g3 {[%clk 0:02:54.1]}
2... d5 {[%clk 0:02:44.8]} 3. Bg2 {[%clk 0:02:46.9]} 3... Bf5 {[%clk 0:02:43.7]}
4. Nf3 {[%clk 0:02:43.4]} 4... e6 {[%clk 0:02:43.5]} 5. O-O {[%clk 0:02:38.2]}
5... Be7 {[%clk 0:02:42.1]} 6. Nh4 {[%clk 0:02:30.7]} 6... Bg4 {[%clk
0:02:25.8]} 7. h3 {[%clk 0:02:29.2]} 7... Bh5 {[%clk 0:02:25.2]} 8. Nd2 {[%clk
0:02:24]} 8... c5 {[%clk 0:02:22.3]} 9. c3 {[%clk 0:02:05.3]} 9... Nc6 {[%clk
0:02:21.5]} 10. e3 {[%clk 0:02:02.7]} 10... a5 {[%clk 0:02:16.4]} 11. Qa4 {[%clk
0:02:01.4]} 11... g5 {[%clk 0:01:57.4]} 12. Nhf3 {[%clk 0:02:00.4]} 12... g4
{[%clk 0:01:57.8]} 13. Ne5 {[%clk 0:01:59.6]} 13... Qc7 {[%clk 0:01:52]} 14. h4
{[%clk 0:01:45.9]} 14... Nd7 {[%clk 0:01:49.5]} 15. Nxc6 {[%clk 0:01:38.2]}
15... Qxc6 {[%clk 0:01:50.4]} 16. Qxc6 {[%clk 0:01:36.8]} 16... bxc6 {[%clk
0:01:51.3]} 17. b3 {[%clk 0:01:32.8]} 17... a4 {[%clk 0:01:50.7]} 18. bxa4
{[%clk 0:01:22.8]} 18... Rxa4 {[%clk 0:01:46.8]} 19. Nb3 {[%clk 0:01:19.7]}
19... Bg6 {[%clk 0:01:41.1]} 20. Bd2 {[%clk 0:01:13.2]} 20... Bd3 {[%clk
0:01:26.2]} 21. Rfc1 {[%clk 0:01:12.8]} 21... O-O {[%clk 0:01:19.2]} 22. Bf1
{[%clk 0:01:12.1]} 22... Bxf1 {[%clk 0:01:16.9]} 23. Rxf1 {[%clk 0:01:10.5]}
23... c4 {[%clk 0:01:17.8]} 24. Nc1 {[%clk 0:01:10.3]} 24... Rb8 {[%clk
0:01:16]} 25. Rd1 {[%clk 0:01:05.9]} 25... Rb2 {[%clk 0:01:11.9]} 26. Be1 {[%clk
0:01:06.1]} 26... Rc2 {[%clk 0:01:00.5]} 27. Kf1 {[%clk 0:01:03.4]} 27... Nf6
{[%clk 0:01:00.3]} 28. Rd2 {[%clk 0:01:00.3]} 28... Rxc3 {[%clk 0:00:55.2]} 29.
Rb2 {[%clk 0:01:00]} 29... Rca3 {[%clk 0:00:49.5]} 30. Rb8+ {[%clk 0:00:59.9]}
30... Kg7 {[%clk 0:00:49.2]} 31. Rb7 {[%clk 0:01:00]} 31... Bf8 {[%clk
0:00:46.2]} 32. Ke2 {[%clk 0:01:00.4]} 32... Ne4 {[%clk 0:00:41.6]} 33. Rb2
{[%clk 0:00:58.4]} 33... Ra7 {[%clk 0:00:23]} 34. Kd1 {[%clk 0:00:52.6]} 34...
R3a4 {[%clk 0:00:21.2]} 35. Kc2 {[%clk 0:00:50.9]} 35... Ba3 {[%clk 0:00:21.3]}
36. Rb6 {[%clk 0:00:48.8]} 36... c5 {[%clk 0:00:21.1]} 37. Ne2 {[%clk
0:00:45.3]} 37... cxd4 {[%clk 0:00:20.1]} 38. Nxd4 {[%clk 0:00:45.1]} 38... Bc5
{[%clk 0:00:18.1]} 39. Rb8 {[%clk 0:00:42.6]} 39... Rxa2+ {[%clk 0:00:17.6]} 40.
Rxa2 {[%clk 0:00:41.6]} 40... Rxa2+ {[%clk 0:00:18.5]} 41. Kb1 {[%clk
0:00:41.7]} 41... Ra4 {[%clk 0:00:13.6]} 42. Nc6 {[%clk 0:00:39.1]} 42... c3
{[%clk 0:00:12.2]} 43. Rb5 {[%clk 0:00:35.4]} 43... Bd6 {[%clk 0:00:10.4]} 44.
Kc2 {[%clk 0:00:31.3]} 44... Ra2+ {[%clk 0:00:10.1]} 45. Kd3 {[%clk 0:00:31]}
45... c2 {[%clk 0:00:08.2]} 46. Bd2 {[%clk 0:00:28]} 46... Nxf2+ {[%clk
0:00:07.8]} 47. Ke2 {[%clk 0:00:26.4]} 47... Ne4 {[%clk 0:00:08.7]} 48. Bc1
{[%clk 0:00:26.6]} 48... Ra1 {[%clk 0:00:08.1]} 49. Bd2 {[%clk 0:00:18.9]} 49...
c1=Q {[%clk 0:00:07]} 50. Bxc1 {[%clk 0:00:18.7]} 50... Rxc1 {[%clk 0:00:07.9]}
51. Nd8 {[%clk 0:00:17.9]} 51... Bxg3 {[%clk 0:00:07]} 52. Rb7 {[%clk
0:00:17.3]} 52... Re1+ {[%clk 0:00:07.4]} 53. Kd3 {[%clk 0:00:16.8]} 53... Nc5+
{[%clk 0:00:07.5]} 54. Kd2 {[%clk 0:00:16.1]} 54... Nxb7 {[%clk 0:00:08.4]} 55.
Nxb7 {[%clk 0:00:15.4]} 55... Rh1 {[%clk 0:00:09.3]} 0-1

[Event "Early-Titled-Tuesday-Blitz-March-19-2024"]
[Site "Chess.com"]
[Date "2024.03.19"]
[Round "10"]
[White "Zhigalko_Sergei"]
[Black "adotand"]
[Result "1-0"]
[WhiteElo "2881"]
[BlackElo "2994"]
[TimeControl "180+1"]
[EndTime "9:56:10 PDT"]
[Termination "Zhigalko_Sergei won by resignation"]

1. e4 {[%clk 0:03:00.9]} 1... e5 {[%clk 0:02:59.5]} 2. Nf3 {[%clk 0:03:01.2]}
2... Nc6 {[%clk 0:02:58.9]} 3. Bc4 {[%clk 0:03:01.5]} 3... Bc5 {[%clk
0:02:57.2]} 4. b4 {[%clk 0:03:01]} 4... Bxb4 {[%clk 0:02:56.8]} 5. c3 {[%clk
0:03:01.3]} 5... Be7 {[%clk 0:02:55.4]} 6. d4 {[%clk 0:03:01.6]} 6... Na5 {[%clk
0:02:54.7]} 7. Bd3 {[%clk 0:03:02.1]} 7... d6 {[%clk 0:02:55]} 8. dxe5 {[%clk
0:03:02.6]} 8... dxe5 {[%clk 0:02:55.1]} 9. Nxe5 {[%clk 0:03:03.5]} 9... Nf6
{[%clk 0:02:54.5]} 10. O-O {[%clk 0:03:03.7]} 10... O-O {[%clk 0:02:54.6]} 11.
Qc2 {[%clk 0:03:04.4]} 11... Re8 {[%clk 0:02:46]} 12. Nd2 {[%clk 0:02:57]} 12...
Bd6 {[%clk 0:02:42.4]} 13. Nef3 {[%clk 0:02:54.8]} 13... Nc6 {[%clk 0:02:42.4]}
14. h3 {[%clk 0:02:48.4]} 14... Be6 {[%clk 0:02:35.9]} 15. Re1 {[%clk
0:02:45.1]} 15... Nd7 {[%clk 0:02:29.7]} 16. Nc4 {[%clk 0:02:34.8]} 16... Bxc4
{[%clk 0:02:28.9]} 17. Bxc4 {[%clk 0:02:34.7]} 17... Nde5 {[%clk 0:02:29.6]} 18.
Nxe5 {[%clk 0:02:33.3]} 18... Nxe5 {[%clk 0:02:30.5]} 19. Bb3 {[%clk 0:02:26.4]}
19... Qh4 {[%clk 0:02:30.6]} 20. Qe2 {[%clk 0:02:19.7]} 20... a5 {[%clk
0:02:26]} 21. a4 {[%clk 0:02:17]} 21... Ra6 {[%clk 0:02:22.4]} 22. Be3 {[%clk
0:02:12.1]} 22... Ng6 {[%clk 0:02:18.1]} 23. Bc4 {[%clk 0:01:56.6]} 23... Raa8
{[%clk 0:02:16.3]} 24. Qa2 {[%clk 0:00:48.8]} 24... Re7 {[%clk 0:02:09.6]} 25.
Rab1 {[%clk 0:00:38.9]} 25... Qxe4 {[%clk 0:01:43.3]} 26. Bd2 {[%clk 0:00:18.9]}
26... Qf5 {[%clk 0:01:41.9]} 27. Rxe7 {[%clk 0:00:17.3]} 27... Nxe7 {[%clk
0:01:39.3]} 28. Rxb7 {[%clk 0:00:16.7]} 28... Rd8 {[%clk 0:01:37]} 29. Rb1
{[%clk 0:00:13.6]} 29... Ng6 {[%clk 0:01:32.6]} 30. Rb5 {[%clk 0:00:10.8]} 30...
Qf6 {[%clk 0:01:22.5]} 31. Bg5 {[%clk 0:00:11]} 31... Bh2+ {[%clk 0:00:26.3]}
32. Kxh2 {[%clk 0:00:08.5]} 32... Qd6+ {[%clk 0:00:27.2]} 33. g3 {[%clk
0:00:08.5]} 33... Rf8 {[%clk 0:00:25.5]} 34. Qe2 {[%clk 0:00:06.4]} 34... h6
{[%clk 0:00:25.4]} 35. Be3 {[%clk 0:00:06.5]} 35... Re8 {[%clk 0:00:23.9]} 36.
Rd5 {[%clk 0:00:04.6]} 36... Qf6 {[%clk 0:00:22.2]} 37. Rxa5 {[%clk 0:00:04]}
37... Qxc3 {[%clk 0:00:21.7]} 38. Rc5 {[%clk 0:00:03.5]} 38... Qa3 {[%clk
0:00:20.5]} 39. Qd2 {[%clk 0:00:02.7]} 39... Ne5 {[%clk 0:00:20.5]} 40. Bd5
{[%clk 0:00:03.1]} 40... Rd8 {[%clk 0:00:18.2]} 41. Qe2 {[%clk 0:00:03.4]} 41...
Qxa4 {[%clk 0:00:14.5]} 42. Bg2 {[%clk 0:00:02.5]} 42... Qd7 {[%clk 0:00:14]}
43. Rxe5 {[%clk 0:00:02.6]} 43... c6 {[%clk 0:00:13.8]} 44. Re4 {[%clk
0:00:02.9]} 44... Rc8 {[%clk 0:00:13.6]} 45. Qc2 {[%clk 0:00:03.1]} 45... Qc7
{[%clk 0:00:13]} 46. Rc4 {[%clk 0:00:04]} 46... Qe7 {[%clk 0:00:11.9]} 47. Rxc6
{[%clk 0:00:04.3]} 47... Re8 {[%clk 0:00:11.3]} 48. Rc8 {[%clk 0:00:04.5]} 48...
h5 {[%clk 0:00:11.4]} 49. Rxe8+ {[%clk 0:00:04.8]} 49... Qxe8 {[%clk 0:00:12.3]}
50. Qd2 {[%clk 0:00:05.3]} 50... Qe7 {[%clk 0:00:12]} 51. Qd4 {[%clk 0:00:05.8]}
51... f6 {[%clk 0:00:11.1]} 52. h4 {[%clk 0:00:06.2]} 52... Kh7 {[%clk
0:00:10.7]} 53. Qe4+ {[%clk 0:00:05.9]} 1-0

[Event "Early-Titled-Tuesday-Blitz-March-19-2024"]
[Site "Chess.com"]
[Date "2024.03.19"]
[Round "10"]
[White "Robert_Chessmood"]
[Black "Igor_Lysyj"]
[Result "1/2-1/2"]
[WhiteElo "2974"]
[BlackElo "2836"]
[TimeControl "180+1"]
[EndTime "9:56:10 PDT"]
[Termination "Game drawn by repetition"]

1. e4 {[%clk 0:03:00.9]} 1... e5 {[%clk 0:02:59.9]} 2. Nf3 {[%clk 0:03:01.2]}
2... Nc6 {[%clk 0:02:59.8]} 3. Bb5 {[%clk 0:03:01.8]} 3... a6 {[%clk 0:03:00.1]}
4. Ba4 {[%clk 0:03:01.7]} 4... Nf6 {[%clk 0:03:00.5]} 5. O-O {[%clk 0:03:02.3]}
5... Nxe4 {[%clk 0:03:00.7]} 6. d4 {[%clk 0:03:01.2]} 6... b5 {[%clk 0:03:00.7]}
7. Bb3 {[%clk 0:03:01.4]} 7... d5 {[%clk 0:03:01.1]} 8. dxe5 {[%clk 0:03:01.7]}
8... Be6 {[%clk 0:03:00.6]} 9. Nbd2 {[%clk 0:03:01.8]} 9... Be7 {[%clk
0:02:58.8]} 10. c3 {[%clk 0:03:01.5]} 10... Qd7 {[%clk 0:02:57.7]} 11. Bc2
{[%clk 0:02:42.4]} 11... Bf5 {[%clk 0:02:56.7]} 12. Re1 {[%clk 0:02:29]} 12...
Rd8 {[%clk 0:02:56]} 13. Nd4 {[%clk 0:02:13.2]} 13... Nxd4 {[%clk 0:02:39.9]}
14. cxd4 {[%clk 0:02:12.6]} 14... Nxd2 {[%clk 0:02:35.6]} 15. Bxd2 {[%clk
0:02:09.1]} 15... c5 {[%clk 0:02:31.3]} 16. dxc5 {[%clk 0:02:00.7]} 16... Bxc5
{[%clk 0:02:30.5]} 17. Rc1 {[%clk 0:01:54.7]} 17... Rc8 {[%clk 0:01:46]} 18.
Bxf5 {[%clk 0:01:39.4]} 18... Qxf5 {[%clk 0:01:45.8]} 19. Be3 {[%clk 0:01:38.3]}
19... Bxe3 {[%clk 0:01:43.7]} 20. Rxc8+ {[%clk 0:01:36.4]} 20... Qxc8 {[%clk
0:01:43.2]} 21. Rxe3 {[%clk 0:01:36.8]} 21... O-O {[%clk 0:01:42.6]} 22. g3
{[%clk 0:01:25.5]} 22... Rd8 {[%clk 0:01:29.7]} 23. Rc3 {[%clk 0:01:15.9]} 23...
Qf5 {[%clk 0:01:28.7]} 24. Qd4 {[%clk 0:01:08.4]} 24... h5 {[%clk 0:01:16]} 25.
Kg2 {[%clk 0:01:02.7]} 25... Qe6 {[%clk 0:01:00]} 26. Rc5 {[%clk 0:00:42]} 26...
g6 {[%clk 0:00:52.2]} 27. h3 {[%clk 0:00:41.7]} 27... Kh7 {[%clk 0:00:43.5]} 28.
Rc7 {[%clk 0:00:37.8]} 28... Kg8 {[%clk 0:00:39]} 29. a3 {[%clk 0:00:32.5]}
29... Re8 {[%clk 0:00:37]} 30. f4 {[%clk 0:00:27]} 30... Rc8 {[%clk 0:00:34.6]}
31. Rc5 {[%clk 0:00:12.2]} 31... Rxc5 {[%clk 0:00:29.1]} 32. Qxc5 {[%clk
0:00:13.1]} 32... Qf5 {[%clk 0:00:26.2]} 33. Qxd5 {[%clk 0:00:07.4]} 33... Qc2+
{[%clk 0:00:26.1]} 34. Kf3 {[%clk 0:00:07.2]} 34... Qxb2 {[%clk 0:00:21.3]} 35.
Qd8+ {[%clk 0:00:04.9]} 35... Kh7 {[%clk 0:00:18.2]} 36. Qd3 {[%clk 0:00:04.2]}
36... a5 {[%clk 0:00:15.4]} 37. e6 {[%clk 0:00:03.8]} 37... fxe6 {[%clk
0:00:13.2]} 38. g4 {[%clk 0:00:04.3]} 38... hxg4+ {[%clk 0:00:12.2]} 39. hxg4
{[%clk 0:00:05.2]} 39... b4 {[%clk 0:00:09.6]} 40. axb4 {[%clk 0:00:06.1]} 40...
axb4 {[%clk 0:00:09.9]} 41. Qd7+ {[%clk 0:00:06.1]} 41... Qg7 {[%clk 0:00:09.9]}
42. Qxe6 {[%clk 0:00:05.7]} 42... Qb7+ {[%clk 0:00:09.9]} 43. Kg3 {[%clk
0:00:04.2]} 43... b3 {[%clk 0:00:10.2]} 44. f5 {[%clk 0:00:04.7]} 44... gxf5
{[%clk 0:00:09.6]} 45. gxf5 {[%clk 0:00:05.6]} 45... b2 {[%clk 0:00:09]} 46.
Qg6+ {[%clk 0:00:04.5]} 46... Kh8 {[%clk 0:00:09.4]} 47. Qh6+ {[%clk 0:00:04.7]}
47... Kg8 {[%clk 0:00:09.8]} 48. Qe6+ {[%clk 0:00:04.8]} 48... Kh8 {[%clk
0:00:08.7]} 49. Qe8+ {[%clk 0:00:05.1]} 49... Kh7 {[%clk 0:00:07.2]} 50. Qg6+
{[%clk 0:00:04.8]} 50... Kh8 {[%clk 0:00:07]} 51. Qe8+ {[%clk 0:00:05.7]} 51...
Kg7 {[%clk 0:00:06.8]} 52. Qg6+ {[%clk 0:00:04.4]} 52... Kf8 {[%clk 0:00:06.3]}
53. Qf6+ {[%clk 0:00:04.3]} 53... Kg8 {[%clk 0:00:05.7]} 54. Qe6+ {[%clk
0:00:03.8]} 54... Kh8 {[%clk 0:00:04.2]} 55. Qe8+ {[%clk 0:00:03.5]} 1/2-1/2

[Event "Early-Titled-Tuesday-Blitz-March-19-2024"]
[Site "Chess.com"]
[Date "2024.03.19"]
[Round "10"]
[White "Anton_Demchenko"]
[Black "Nitzan_Steinberg"]
[Result "1-0"]
[WhiteElo "3024"]
[BlackElo "2880"]
[TimeControl "180+1"]
[EndTime "9:56:10 PDT"]
[Termination "Anton_Demchenko won on time"]

1. e4 {[%clk 0:02:59.6]} 1... c5 {[%clk 0:03:00]} 2. Nf3 {[%clk 0:02:59.2]} 2...
d6 {[%clk 0:02:57.5]} 3. d4 {[%clk 0:02:59]} 3... cxd4 {[%clk 0:02:57.7]} 4.
Qxd4 {[%clk 0:02:59.9]} 4... Nf6 {[%clk 0:02:56.9]} 5. Bg5 {[%clk 0:02:58.3]}
5... Nc6 {[%clk 0:02:53.5]} 6. Bb5 {[%clk 0:02:58.6]} 6... Bd7 {[%clk
0:02:53.6]} 7. Qd3 {[%clk 0:02:58.6]} 7... e6 {[%clk 0:02:52.7]} 8. Nc3 {[%clk
0:02:58.4]} 8... Be7 {[%clk 0:02:52.8]} 9. O-O-O {[%clk 0:02:58]} 9... O-O
{[%clk 0:02:51]} 10. e5 {[%clk 0:02:53.4]} 10... Nb4 {[%clk 0:02:21.7]} 11. Qd4
{[%clk 0:02:08.7]} 11... Nfd5 {[%clk 0:02:21.9]} 12. Bxe7 {[%clk 0:02:04.9]}
12... Qxe7 {[%clk 0:02:21.5]} 13. Bxd7 {[%clk 0:02:01]} 13... Qxd7 {[%clk
0:02:18]} 14. Nxd5 {[%clk 0:01:53.2]} 14... Nxd5 {[%clk 0:02:18.3]} 15. c4
{[%clk 0:01:53.6]} 15... dxe5 {[%clk 0:02:11]} 16. Nxe5 {[%clk 0:01:49.9]} 16...
Qc7 {[%clk 0:02:10.2]} 17. Kb1 {[%clk 0:01:34.6]} 17... Rfd8 {[%clk 0:01:58.2]}
18. f4 {[%clk 0:01:26.6]} 18... Nb6 {[%clk 0:01:45.8]} 19. Qe4 {[%clk
0:01:20.6]} 19... Rac8 {[%clk 0:01:44.4]} 20. b3 {[%clk 0:01:17.5]} 20... a5
{[%clk 0:01:43.2]} 21. Rd4 {[%clk 0:00:57.3]} 21... Rxd4 {[%clk 0:01:38.1]} 22.
Qxd4 {[%clk 0:00:58]} 22... Rd8 {[%clk 0:01:38.4]} 23. Qc3 {[%clk 0:00:50.7]}
23... Nd5 {[%clk 0:01:20.3]} 24. Qf3 {[%clk 0:00:50.4]} 24... Nb4 {[%clk
0:01:05.6]} 25. a3 {[%clk 0:00:36.7]} 25... Nc6 {[%clk 0:01:04.5]} 26. Rd1
{[%clk 0:00:33.6]} 26... g6 {[%clk 0:00:46.9]} 27. Rxd8+ {[%clk 0:00:30.1]}
27... Qxd8 {[%clk 0:00:47.1]} 28. Nxc6 {[%clk 0:00:27.3]} 28... bxc6 {[%clk
0:00:48]} 29. Kc2 {[%clk 0:00:26.1]} 29... Qd6 {[%clk 0:00:44.6]} 30. a4 {[%clk
0:00:18.2]} 30... Qc5 {[%clk 0:00:36.8]} 31. g3 {[%clk 0:00:15.3]} 31... h5
{[%clk 0:00:36.4]} 32. Qe2 {[%clk 0:00:13.4]} 32... Qd4 {[%clk 0:00:23.2]} 33.
Qe1 {[%clk 0:00:10]} 33... Qc5 {[%clk 0:00:16.5]} 34. Qd2 {[%clk 0:00:10.4]}
34... Kg7 {[%clk 0:00:15.3]} 35. Qc3+ {[%clk 0:00:10.3]} 35... f6 {[%clk
0:00:15.3]} 36. Qd2 {[%clk 0:00:09.6]} 36... e5 {[%clk 0:00:12.2]} 37. Kb2
{[%clk 0:00:05]} 37... e4 {[%clk 0:00:06.1]} 38. Qd7+ {[%clk 0:00:03.6]} 38...
Kf8 {[%clk 0:00:04.8]} 39. Qd8+ {[%clk 0:00:03.9]} 39... Kf7 {[%clk 0:00:04.9]}
40. Qd7+ {[%clk 0:00:04.6]} 40... Qe7 {[%clk 0:00:03.5]} 41. Qxc6 {[%clk
0:00:03.1]} 41... e3 {[%clk 0:00:04]} 42. Qd5+ {[%clk 0:00:03.7]} 42... Kg7
{[%clk 0:00:04.6]} 43. Qd1 {[%clk 0:00:03]} 43... e2 {[%clk 0:00:03.3]} 44. Qe1
{[%clk 0:00:03.8]} 44... Qe3 {[%clk 0:00:03.2]} 45. Kc2 {[%clk 0:00:03.5]} 45...
h4 {[%clk 0:00:01.9]} 46. gxh4 {[%clk 0:00:02.9]} 46... Kh6 {[%clk 0:00:02.5]}
47. c5 {[%clk 0:00:03]} 47... Qxc5+ {[%clk 0:00:02.2]} 48. Kd3 {[%clk
0:00:03.1]} 48... Qd5+ {[%clk 0:00:01.8]} 49. Kxe2 {[%clk 0:00:03.3]} 49... Qe4+
{[%clk 0:00:01.8]} 50. Kd2 {[%clk 0:00:03.5]} 50... Qxf4+ {[%clk 0:00:01.9]} 51.
Qe3 {[%clk 0:00:04.1]} 1-0

[Event "Early-Titled-Tuesday-Blitz-March-19-2024"]
[Site "Chess.com"]
[Date "2024.03.19"]
[Round "10"]
[White "AlanZhang"]
[Black "ploxoi"]
[Result "0-1"]
[WhiteElo "2243"]
[BlackElo "2442"]
[TimeControl "180+1"]
[EndTime "9:56:12 PDT"]
[Termination "ploxoi won on time"]

1. e4 {[%clk 0:02:58.8]} 1... e6 {[%clk 0:02:59.6]} 2. d4 {[%clk 0:02:58.5]}
2... d5 {[%clk 0:03:00.5]} 3. Nc3 {[%clk 0:02:59]} 3... Bb4 {[%clk 0:02:59.8]}
4. e5 {[%clk 0:02:58.5]} 4... Ne7 {[%clk 0:03:00.4]} 5. a3 {[%clk 0:02:59.1]}
5... Bxc3+ {[%clk 0:03:00.7]} 6. bxc3 {[%clk 0:03:00]} 6... c5 {[%clk
0:03:01.1]} 7. Nf3 {[%clk 0:03:00.2]} 7... h6 {[%clk 0:03:00.4]} 8. a4 {[%clk
0:03:00.5]} 8... b6 {[%clk 0:02:56.2]} 9. h4 {[%clk 0:02:59.4]} 9... Ba6 {[%clk
0:02:55.4]} 10. Bd3 {[%clk 0:02:59]} 10... Qc7 {[%clk 0:02:52.2]} 11. Qd2 {[%clk
0:02:55.6]} 11... Qb7 {[%clk 0:02:32.1]} 12. h5 {[%clk 0:02:39.2]} 12... Nd7
{[%clk 0:02:31.5]} 13. O-O {[%clk 0:02:37.6]} 13... Nc6 {[%clk 0:02:30.2]} 14.
Ba3 {[%clk 0:02:31]} 14... Rc8 {[%clk 0:02:27.7]} 15. Qe3 {[%clk 0:02:01.4]}
15... Na5 {[%clk 0:02:24.1]} 16. Nd2 {[%clk 0:01:55.1]} 16... cxd4 {[%clk
0:02:10.4]} 17. cxd4 {[%clk 0:01:44.1]} 17... Nc4 {[%clk 0:02:09.9]} 18. Nxc4
{[%clk 0:01:36.3]} 18... Bxc4 {[%clk 0:02:10.8]} 19. Qg3 {[%clk 0:01:28.6]}
19... g6 {[%clk 0:01:28.7]} 20. hxg6 {[%clk 0:01:21.9]} 20... Rg8 {[%clk
0:01:29.2]} 21. gxf7+ {[%clk 0:01:05.9]} 21... Kxf7 {[%clk 0:01:30.1]} 22. Qf3+
{[%clk 0:00:35.5]} 22... Ke8 {[%clk 0:01:11.4]} 23. Qh5+ {[%clk 0:00:30.6]}
23... Kd8 {[%clk 0:01:11.1]} 24. Qf7 {[%clk 0:00:19.2]} 24... Re8 {[%clk
0:00:58.9]} 25. Bd6 {[%clk 0:00:07.5]} 25... Bxd3 {[%clk 0:00:52]} 26. cxd3
{[%clk 0:00:08.4]} 26... Qc6 {[%clk 0:00:38.1]} 27. Rac1 {[%clk 0:00:08.7]}
27... Qxc1 {[%clk 0:00:38]} 28. Rxc1 {[%clk 0:00:09.6]} 28... Rxc1+ {[%clk
0:00:38.1]} 29. Kh2 {[%clk 0:00:10.5]} 29... Rc2 {[%clk 0:00:28.1]} 30. f4
{[%clk 0:00:10.7]} 30... h5 {[%clk 0:00:25.4]} 31. f5 {[%clk 0:00:10.6]} 31...
Rc8 {[%clk 0:00:06.2]} 32. fxe6 {[%clk 0:00:08.4]} 32... Nb8 {[%clk 0:00:06.6]}
33. e7+ {[%clk 0:00:06.4]} 33... Kd7 {[%clk 0:00:06.9]} 34. Qf5+ {[%clk
0:00:05.8]} 34... Kc6 {[%clk 0:00:06.8]} 35. Qe6 {[%clk 0:00:06.2]} 35... Kb7
{[%clk 0:00:06.1]} 36. Bxb8 {[%clk 0:00:05]} 36... Kxb8 {[%clk 0:00:07]} 37.
Qd6+ {[%clk 0:00:03.9]} 37... Rc7 {[%clk 0:00:05.4]} 38. Qd8+ {[%clk 0:00:03.3]}
38... Rc8 {[%clk 0:00:05.9]} 39. Qxd5 {[%clk 0:00:03.6]} 39... Rxe7 {[%clk
0:00:05.8]} 40. e6 {[%clk 0:00:04.5]} 40... Rce8 {[%clk 0:00:05.3]} 41. Qd6+
{[%clk 0:00:05]} 41... Kb7 {[%clk 0:00:05.3]} 42. d5 {[%clk 0:00:05.6]} 42... a5
{[%clk 0:00:04.3]} 43. Qc6+ {[%clk 0:00:05.8]} 43... Ka7 {[%clk 0:00:04]} 44. d4
{[%clk 0:00:06.2]} 44... Rd8 {[%clk 0:00:03]} 45. d6 {[%clk 0:00:03.6]} 45...
Rxe6 {[%clk 0:00:03.3]} 46. Qb7+ {[%clk 0:00:04.2]} 46... Kxb7 {[%clk
0:00:03.3]} 47. Kg3 {[%clk 0:00:04.8]} 47... Rexd6 {[%clk 0:00:03.8]} 48. Kh4
{[%clk 0:00:05.7]} 48... Rxd4+ {[%clk 0:00:04.5]} 49. Kxh5 {[%clk 0:00:06.4]}
49... Rxa4 {[%clk 0:00:05.2]} 50. Kg5 {[%clk 0:00:06.8]} 50... Rg8+ {[%clk
0:00:04.8]} 51. Kf5 {[%clk 0:00:07.1]} 51... Rxg2 {[%clk 0:00:05.7]} 52. Ke5
{[%clk 0:00:07.8]} 52... Rb2 {[%clk 0:00:06.6]} 53. Ke6 {[%clk 0:00:08.4]} 53...
Rab4 {[%clk 0:00:07.5]} 54. Kf6 {[%clk 0:00:09]} 54... a4 {[%clk 0:00:08.4]} 55.
Kg6 {[%clk 0:00:09.8]} 55... a3 {[%clk 0:00:09.3]} 56. Kg5 {[%clk 0:00:10.6]}
56... Rc2 {[%clk 0:00:10.2]} 57. Kf5 {[%clk 0:00:11.4]} 57... Rb1 {[%clk
0:00:11.1]} 58. Kf4 {[%clk 0:00:12]} 58... Rd1 {[%clk 0:00:12]} 59. Kg4 {[%clk
0:00:12.7]} 59... Rcd2 {[%clk 0:00:12.3]} 0-1